fUST/lending_fUST_20250717
["ID","MTS","AMOUNT","RATE_DAILY","PERIOD"]
[372581692,1752691872599,-490.68,0.00024109,2]
[372581693,1752691872609,-1119.71,0.00024109,2]
[372581694,1752691872619,-460.0,0.00024109,2]
[372581695,1752691872629,-2035.33,0.00024109,2]
[372581696,1752691872639,-947.11,0.00024109,2]
[372581697,1752691872648,-1036.43,0.00024109,2]
[372581698,1752691872658,-1338.37,0.00024109,2]
[372581699,1752691872668,-4639.56,0.00024109,2]
[372581700,1752691872677,-857.94,0.00024109,2]
[372581701,1752691872687,-6797.45,0.00024109,2]
[372581702,1752691872696,-626.62,0.00024109,2]
[372581703,1752691872706,-2073.7,0.00024109,2]
[372581704,1752691872716,-1017.05,0.00024109,2]
[372581705,1752691872725,-4815.32,0.00024109,2]
[372581706,1752691872735,-4790.96,0.00024109,2]
[372581707,1752691872745,-657.78,0.00024109,2]
[372581708,1752691872755,-736.37,0.00024109,2]
[372581709,1752691872764,-707.16,0.00024109,2]
[372581710,1752691872774,-1707.87,0.00024109,2]
[372581711,1752691872783,-672.05,0.00024109,2]
[372581712,1752691872793,-754.8,0.00024109,2]
[372581713,1752691872803,-2035.47,0.00024109,2]
[372581714,1752691872816,-1429.59,0.00024109,2]
[372581715,1752691872827,-694.94,0.00024109,2]
[372581716,1752691872838,-460.0,0.00024109,2]
[372581717,1752691872848,-1651.48,0.00024109,2]
[372581718,1752691872858,-819.02,0.00024109,2]
[372581719,1752691872868,-524.37,0.00024109,2]
[372581720,1752691872878,-2569.94,0.00024109,2]
[372581721,1752691872888,-2591.26,0.00024109,2]
[372581722,1752691872897,-604.35,0.00024109,2]
[372581723,1752691872907,-546.21,0.00024109,2]
[372581724,1752691872916,-854.66,0.00024109,2]
[372581725,1752691872926,-2805.27,0.00024109,2]
[372581726,1752691872935,-1502.0,0.0002411,2]
[372581727,1752691872945,-671.0,0.0002411,2]
[372581728,1752691872957,-1093.18124554,0.00024116,2]
[372581729,1752691872967,-2000.0,0.00024116,2]
[372581730,1752691872976,-300.0,0.00024116,2]
[372581731,1752691872985,-2000.0,0.00024116,2]
[372581732,1752691872995,-2000.0,0.00024116,2]
[372581733,1752691873004,-259.48036,0.00024157,6]
[372581734,1752691873014,-177.46811821,0.00024164,2]
[372581735,1752691873024,-2500.0,0.00024164,2]
[372581736,1752691873033,-198.0,0.00024164,7]
[372581737,1752691873044,-5902.78850771,0.00024245,10]
[372581738,1752691873054,-3000.0,0.00024273,2]
[372581739,1752691873065,-2541.21077237,0.00024273,2]
[372581740,1752691873075,-177.46811821,0.00024274,2]
[372581741,1752691873085,-153.0,0.00024274,2]
[372581742,1752691873094,-6578.69,0.000243,7]
[372581743,1752691873104,-12179.96559771,0.0002432,7]
[372581744,1752691873114,-259.48036,0.00024358,8]
[372581745,1752691873123,-160.0,0.00024361,12]
[372581746,1752691873133,-410.3,0.00024371,6]
[372581747,1752691873142,-307.8493984,0.00024383,2]
[372581748,1752691873152,-575.44,0.00024383,2]
[372581749,1752691873162,-466.78,0.00024383,2]
[372581750,1752691873171,-634.38,0.00024383,2]
[372581751,1752691873181,-635.4,0.00024383,2]
[372581752,1752691873191,-460.0,0.00024383,2]
[372581753,1752691873201,-479.04,0.00024383,2]
[372581754,1752691873211,-716.68,0.00024383,2]
[372581755,1752691873220,-861.28,0.00024383,2]
[372581756,1752691873230,-569.61,0.00024383,2]
[372581757,1752691873240,-3294.4,0.00024383,2]
[372581758,1752691873251,-480.7,0.00024383,2]
[372581759,1752691873261,-490.68,0.00024383,2]
[372581760,1752691873271,-1119.71,0.00024383,2]
[372581761,1752691873280,-460.0,0.00024383,2]
[372581762,1752691873290,-2035.33,0.00024383,2]
[372581763,1752691873300,-947.11,0.00024383,2]
[372581764,1752691873315,-1036.43,0.00024383,2]
[372581765,1752691873324,-1338.37,0.00024383,2]
[372581766,1752691873334,-4639.56,0.00024383,2]
[372581767,1752691873343,-857.94,0.00024383,2]
[372581768,1752691873353,-6797.45,0.00024383,2]
[372581769,1752691873362,-626.62,0.00024383,2]
[372581770,1752691873372,-2073.7,0.00024383,2]
[372581771,1752691873381,-1017.05,0.00024383,2]
[372581772,1752691873391,-4815.32,0.00024383,2]
[372581773,1752691873402,-4790.96,0.00024383,2]
[372581774,1752691873411,-657.78,0.00024383,2]
[372581775,1752691873421,-736.37,0.00024383,2]
[372581776,1752691873431,-707.16,0.00024383,2]
[372581777,1752691873440,-1707.87,0.00024383,2]
[372581778,1752691873450,-672.05,0.00024383,2]
[372581779,1752691873459,-754.8,0.00024383,2]
[372581780,1752691873469,-2035.47,0.00024383,2]
[372581781,1752691873478,-1429.59,0.00024383,2]
[372581782,1752691873488,-694.94,0.00024383,2]
[372581783,1752691873498,-460.0,0.00024383,2]
[372581784,1752691873507,-1651.48,0.00024383,2]
[372581785,1752691873517,-819.02,0.00024383,2]
[372581786,1752691873527,-524.37,0.00024383,2]
[372581787,1752691873536,-2569.94,0.00024383,2]
[372581788,1752691873546,-2591.26,0.00024383,2]
[372581789,1752691873555,-604.35,0.00024383,2]
[372581790,1752691873568,-546.21,0.00024383,2]
[372581791,1752691873578,-854.66,0.00024383,2]
[372581792,1752691873587,-2805.27,0.00024383,2]
[372581793,1752691873597,-1502.0,0.00024384,2]
[372581794,1752691873607,-671.0,0.00024384,2]
[372581795,1752691873617,-177.46811821,0.00024411,2]
[372581796,1752691873626,-360.2374671,0.00024442,2]
[372581797,1752691873636,-5902.78850771,0.00024452,11]
[372581798,1752691873646,-1285.68184615,0.00024464,2]
[372581799,1752691873656,-151.0,0.000245,7]
[372581800,1752691873667,-484.007645,0.000245,7]
[372581801,1752691873678,-484.007645,0.000245,7]
[372581802,1752691873688,-49663.33,0.000245,2]
[372581803,1752691873699,-860.0,0.00024516,2]
[372581804,1752691873709,-177.46811821,0.00024521,2]
[372581805,1752691873718,-259.48036,0.00024526,7]
[372581806,1752691873728,-500.0,0.00024567,2]
[372581807,1752691873738,-177.46811821,0.0002463,2]
[372581808,1752691873748,-151.0,0.00024654,7]
[372581809,1752691873758,-5888.0,0.00024654,2]
[372581810,1752691873767,-151.0,0.00024657,7]
[372581811,1752691873777,-151.0,0.00024657,7]
[372581812,1752691873787,-151.0,0.00024657,7]
[372581813,1752691873796,-171.201324,0.00024657,7]
[372581814,1752691873804,-171.201324,0.00024657,7]
[372581815,1752691873815,-151.0,0.00024657,7]
[372581816,1752691873825,-151.0,0.00024657,7]
[372581817,1752691873835,-1421.256571,0.00024657,7]
[372581818,1752691873844,-1421.256579,0.00024657,7]
[372581819,1752691873854,-388.59,0.00024657,2]
[372581820,1752691873866,-575.44,0.00024657,2]
[372581821,1752691873876,-466.78,0.00024657,2]
[372581822,1752691873887,-634.38,0.00024657,2]
[372581823,1752691873897,-352.704953,0.00024657,7]
[372581824,1752691873908,-352.704953,0.00024657,7]
[372581825,1752691873925,-635.4,0.00024657,2]
[372581826,1752691873934,-460.0,0.00024657,2]
[372581827,1752691873944,-1558.96025,0.00024657,7]
[372581828,1752691873955,-479.04,0.00024657,2]
[372581829,1752691873965,-1558.96025,0.00024657,7]
[372581830,1752691873974,-716.68,0.00024657,2]
[372581831,1752691873984,-151.0,0.00024657,7]
[372581832,1752691873994,-861.28,0.00024657,2]
[372581833,1752691874004,-183.010506,0.00024657,7]
[372581834,1752691874013,-183.010506,0.00024657,7]
[372581835,1752691874023,-569.61,0.00024657,2]
[372581836,1752691874032,-3294.4,0.00024657,2]
[372581837,1752691874045,-480.7,0.00024657,2]
[372581838,1752691874055,-490.68,0.00024657,2]
[372581839,1752691874066,-1119.71,0.00024657,2]
[372581840,1752691874075,-460.0,0.00024657,2]
[372581841,1752691874086,-2035.33,0.00024657,2]
[372581842,1752691874095,-1425.310442,0.00024657,7]
[372581843,1752691874146,-1425.310442,0.00024657,7]
[372581844,1752691874156,-947.11,0.00024657,2]
[372581845,1752691874166,-1036.43,0.00024657,2]
[372581846,1752691874175,-1338.37,0.00024657,2]
[372581847,1752691874184,-4639.56,0.00024657,2]
[372581848,1752691874194,-857.94,0.00024657,2]
[372581849,1752691874204,-6797.45,0.00024657,2]
[372581850,1752691874214,-626.62,0.00024657,2]
[372581851,1752691874223,-2073.7,0.00024657,2]
[372581852,1752691874232,-1017.05,0.00024657,2]
[372581853,1752691874241,-4815.32,0.00024657,2]
[372581854,1752691874251,-4790.96,0.00024657,2]
[372581855,1752691874260,-657.78,0.00024657,2]
[372581856,1752691874269,-736.37,0.00024657,2]
[372581857,1752691874280,-707.16,0.00024657,2]
[372581858,1752691874290,-1707.87,0.00024657,2]
[372581859,1752691874300,-672.05,0.00024657,2]
[372581860,1752691874310,-754.8,0.00024657,2]
[372581861,1752691874325,-2035.47,0.00024657,2]
[372581862,1752691874342,-1429.59,0.00024657,2]
[372581863,1752691874351,-694.94,0.00024657,2]
[372581864,1752691874361,-606.25082422,0.00024657,2]
[372581865,1752691874371,-819.02,0.00024657,2]
[372581866,1752691874380,-1651.48,0.00024657,2]
[372581867,1752691874389,-524.37,0.00024657,2]
[372581868,1752691874398,-2569.94,0.00024657,2]
[372581869,1752691874408,-2591.26,0.00024657,2]
[372581870,1752691874417,-604.35,0.00024657,2]
[372581871,1752691874429,-546.21,0.00024657,2]
[372581872,1752691874438,-854.66,0.00024657,2]
[372581873,1752691874448,-2805.27,0.00024657,2]
[372581874,1752691874457,-909.246555,0.00024657,7]
[372581875,1752691874467,-1502.0,0.00024658,2]
[372581876,1752691874476,-671.0,0.00024658,2]
[372581877,1752691874486,-500.0,0.00024658,2]
[372581878,1752691874496,-5902.78850771,0.00024659,11]
[372581879,1752691874505,-259.48036,0.00024662,10]
[372581880,1752691874515,-2500.0,0.00024664,2]
[372581881,1752691874524,-483.4490543,0.00024664,2]
[372581882,1752691874534,-1018.74580362,0.00024664,2]
[372581883,1752691874543,-572.346681,0.00024669,7]
[372581884,1752691874552,-151.0,0.00024669,7]
[372581885,1752691874565,-572.346681,0.00024669,7]
[372581886,1752691874574,-500.0,0.0002468,2]
[372581887,1752691874583,-71202.07,0.000247,10]
[372581888,1752691874592,-600.424109,0.000247,7]
[372581889,1752691874601,-600.424109,0.000247,7]
[372581890,1752691874611,-38130.45,0.000247,7]
[372581891,1752691874621,-318.214047,0.000247,7]
[372581892,1752691874631,-318.214048,0.000247,7]
[372581893,1752691874641,-259.48036,0.000247,11]
[372581894,1752691874651,-591.762623,0.00024708,7]
[372581895,1752691874661,-591.762623,0.00024708,7]
[372581896,1752691874671,-200.432191,0.00024708,7]
[372581897,1752691874680,-200.432191,0.00024708,7]
[372581898,1752691874691,-179.623348,0.00024708,7]
[372581899,1752691874701,-1852.80024,0.00024712,2]
[372581900,1752691874711,-160.0,0.00024718,13]
[372581901,1752691874721,-167.811949,0.00024739,7]
[372581902,1752691874731,-167.811949,0.00024739,7]
[372581903,1752691874740,-235.488811,0.00024739,7]
[372581904,1752691874750,-235.488811,0.00024739,7]
[372581905,1752691874761,-177.46811821,0.0002474,2]
[372581906,1752691874771,-259.48036,0.0002474,8]
[372581907,1752691874781,-410.3,0.0002475,7]
[372581908,1752691874791,-259.48036,0.00024767,11]
[372581909,1752691874803,-700.0,0.00024792,2]
[372581910,1752691874816,-3500.0,0.00024821,2]
[372581911,1752691874827,-259.48036,0.00024834,11]
[372581912,1752691874837,-151.0,0.00024841,7]
[372581913,1752691874846,-151.0,0.00024841,7]
[372581914,1752691874856,-5902.78850771,0.00024866,12]
[372581915,1752691874866,-199.4645,0.0002487,7]
[372581916,1752691874876,-199.4645,0.0002487,7]
[372581917,1752691874886,-500.0,0.00024873,9]
[372581918,1752691874895,-500.0,0.00024876,9]
[372581919,1752691874906,-177.46811821,0.00024877,2]
[372581920,1752691874915,-204.788774,0.00024889,7]
[372581921,1752691874925,-204.788774,0.00024889,7]
[372581922,1752691874935,-259.48036,0.00024889,2]
[372581923,1752691874944,-1000.0,0.00024899,5]
[372581924,1752691874954,-500.0,0.00024899,10]
[372581925,1752691874963,-151.0,0.000249,7]
[372581926,1752691874973,-300.94446,0.000249,7]
[372581927,1752691874983,-151.0,0.000249,7]
[372581928,1752691874992,-151.0,0.000249,7]
[372581929,1752691875003,-151.0,0.000249,7]
[372581930,1752691875012,-199.4645,0.000249,7]
[372581931,1752691875022,-199.4645,0.000249,7]
[372581932,1752691875035,-151.0,0.000249,7]
[372581933,1752691875044,-151.0,0.000249,7]
[372581934,1752691875054,-151.0,0.000249,7]
[372581935,1752691875064,-171.201324,0.000249,7]
[372581936,1752691875074,-171.201324,0.000249,7]
[372581937,1752691875083,-151.0,0.000249,7]
[372581938,1752691875092,-151.0,0.000249,7]
[372581939,1752691875102,-151.0,0.000249,7]
[372581940,1752691875112,-151.0,0.000249,7]
[372581941,1752691875121,-151.0,0.000249,7]
[372581942,1752691875130,-484.007645,0.000249,7]
[372581943,1752691875140,-484.007645,0.000249,7]
[372581944,1752691875149,-151.0,0.000249,7]
[372581945,1752691875158,-161.045957,0.000249,7]
[372581946,1752691875167,-151.0,0.000249,7]
[372581947,1752691875177,-151.0,0.000249,7]
[372581948,1752691875186,-151.0,0.000249,3]
[372581949,1752691875195,-151.0,0.000249,3]
[372581950,1752691875204,-151.0,0.000249,7]
[372581951,1752691875213,-151.0,0.000249,7]
[372581952,1752691875223,-151.0,0.000249,7]
[372581953,1752691875233,-151.0,0.000249,7]
[372581954,1752691875243,-155.330972,0.000249,7]
[372581955,1752691875252,-852.541455,0.000249,7]
[372581956,1752691875261,-151.0,0.000249,7]
[372581957,1752691875270,-151.0,0.000249,7]
[372581958,1752691875279,-206.691954,0.000249,7]
[372581959,1752691875289,-151.654693,0.000249,7]
[372581960,1752691875298,-151.0,0.000249,7]
[372581961,1752691875307,-151.0,0.000249,7]
[372581962,1752691875318,-283.202781,0.000249,7]
[372581963,1752691875327,-553.552226,0.000249,7]
[372581964,1752691875336,-553.552226,0.000249,7]
[372581965,1752691875346,-283.202781,0.000249,7]
[372581966,1752691875355,-553.552226,0.000249,7]
[372581967,1752691875364,-553.552226,0.000249,7]
[372581968,1752691875373,-296.501652,0.000249,7]
[372581969,1752691875383,-296.501652,0.000249,7]
[372581970,1752691875392,-179.461072,0.000249,7]
[372581971,1752691875401,-179.461072,0.000249,7]
[372581972,1752691875412,-798.961652,0.000249,7]
[372581973,1752691875421,-798.961652,0.000249,7]
[372581974,1752691875431,-186.930841,0.000249,7]
[372581975,1752691875441,-186.930841,0.000249,7]
[372581976,1752691875450,-151.0,0.000249,7]
[372581977,1752691875460,-1134.618057,0.000249,7]
[372581978,1752691875470,-591.762623,0.000249,7]
[372581979,1752691875479,-591.762623,0.000249,7]
[372581980,1752691875489,-216.299438,0.000249,7]
[372581981,1752691875499,-216.299438,0.000249,7]
[372581982,1752691875509,-200.432191,0.000249,7]
[372581983,1752691875518,-200.432191,0.000249,7]
[372581984,1752691875528,-204.788774,0.000249,7]
[372581985,1752691875538,-204.788774,0.000249,7]
[372581986,1752691875547,-156.864641,0.000249,7]
[372581987,1752691875556,-156.864641,0.000249,7]
[372581988,1752691875567,-156.864641,0.000249,7]
[372581989,1752691875576,-156.864641,0.000249,7]
[372581990,1752691875586,-167.811949,0.000249,7]
[372581991,1752691875595,-167.811949,0.000249,7]
[372581992,1752691875605,-151.0,0.000249,7]
[372581993,1752691875615,-167.200197,0.000249,7]
[372581994,1752691875624,-167.200197,0.000249,7]
[372581995,1752691875634,-167.200197,0.000249,7]
[372581996,1752691875643,-167.200197,0.000249,7]
[372581997,1752691875653,-151.0,0.000249,7]
[372581998,1752691875662,-235.488811,0.000249,7]
[372581999,1752691875672,-235.488811,0.000249,7]
[372582000,1752691875682,-600.424109,0.000249,7]
[372582001,1752691875691,-600.42411883,0.000249,7]
[372582002,1752691875701,-572.346681,0.000249,7]
[372582003,1752691875710,-151.0,0.000249,7]
[372582004,1752691875720,-572.346681,0.000249,7]
[372582005,1752691875729,-151.0,0.000249,7]
[372582006,1752691875739,-151.0,0.000249,7]
[372582007,1752691875748,-151.0,0.000249,7]
[372582008,1752691875758,-352.704953,0.000249,7]
[372582009,1752691875767,-352.704953,0.000249,7]
[372582010,1752691875777,-1558.96025,0.000249,7]
[372582011,1752691875787,-1558.96025,0.000249,7]
[372582012,1752691875796,-151.0,0.000249,7]
[372582013,1752691875805,-183.010506,0.000249,7]
[372582014,1752691875816,-183.010506,0.000249,7]
[372582015,1752691875825,-1425.310442,0.000249,7]
[372582016,1752691875834,-1425.310442,0.000249,7]
[372582017,1752691875843,-753286.178373,0.000249,2]
[372582018,1752691875853,-909.246555,0.000249,7]
[372582019,1752691875863,-259.48036,0.00024901,11]
[372582020,1752691875872,-575.44,0.00024931,2]
[372582021,1752691875882,-466.78,0.00024931,2]
[372582022,1752691875891,-634.38,0.00024931,2]
[372582023,1752691875901,-635.4,0.00024931,2]
[372582024,1752691875910,-222.77,0.00024931,2]
[372582025,1752691875919,-479.04,0.00024931,2]
[372582026,1752691875929,-716.68,0.00024931,2]
[372582027,1752691875939,-861.28,0.00024931,2]
[372582028,1752691875949,-569.61,0.00024931,2]
[372582029,1752691875958,-3294.4,0.00024931,2]
[372582030,1752691875967,-480.7,0.00024931,2]
[372582031,1752691875977,-490.68,0.00024931,2]
[372582032,1752691875986,-1119.71,0.00024931,2]
[372582033,1752691875996,-460.0,0.00024931,2]
[372582034,1752691876006,-2035.33,0.00024931,2]
[372582035,1752691876015,-947.11,0.00024931,2]
[372582036,1752691876025,-1036.43,0.00024931,2]
[372582037,1752691876035,-1338.37,0.00024931,2]
[372582038,1752691876047,-4639.56,0.00024931,2]
[372582039,1752691876056,-857.94,0.00024931,2]
[372582040,1752691876067,-6797.45,0.00024931,2]
[372582041,1752691876077,-626.62,0.00024931,2]
[372582042,1752691876087,-2073.7,0.00024931,2]
[372582043,1752691876097,-1017.05,0.00024931,2]
[372582044,1752691876107,-4815.32,0.00024931,2]
[372582045,1752691876118,-4790.96,0.00024931,2]
[372582046,1752691876127,-657.78,0.00024931,2]
[372582047,1752691876137,-736.37,0.00024931,2]
[372582048,1752691876147,-707.16,0.00024931,2]
[372582049,1752691876156,-1707.87,0.00024931,2]
[372582050,1752691876166,-672.05,0.00024931,2]
[372582051,1752691876175,-754.8,0.00024931,2]
[372582052,1752691876185,-2035.47,0.00024931,2]
[372582053,1752691876194,-1429.59,0.00024931,2]
[372582054,1752691876204,-694.94,0.00024931,2]
[372582055,1752691876213,-819.02,0.00024931,2]
[372582056,1752691876223,-1651.48,0.00024931,2]
[372582057,1752691876233,-524.37,0.00024931,2]
[372582058,1752691876243,-2569.94,0.00024931,2]
[372582059,1752691876253,-2591.26,0.00024931,2]
[372582060,1752691876263,-604.35,0.00024931,2]
[372582061,1752691876273,-546.21,0.00024931,2]
[372582062,1752691876282,-854.66,0.00024931,2]
[372582063,1752691876292,-2805.27,0.00024931,2]
[372582064,1752691876302,-1502.0,0.00024932,2]
[372582065,1752691876311,-671.0,0.00024932,2]
[372582066,1752691876322,-500.0,0.00024932,2]
[372582067,1752691876331,-259.48036,0.00024968,11]
[372582068,1752691876341,-500.0,0.00024973,2]
[372582069,1752691876351,-177.46811821,0.00024986,2]
[372582070,1752691876361,-259.48036,0.00024989,14]
[372582071,1752691876370,-223.0315306,0.00024994,2]
[372582072,1752691876380,-10361.0,0.00025,5]
[372582073,1752691876390,-42936.87765248,0.00025,2]
[372582074,1752691876400,-44058.41008178,0.00025,60]
[372582075,1752691876409,-2617.55073514,0.00025,2]
[372582076,1752691876418,-207.56611281,0.00025,2]
[372582077,1752691876428,-10364.0,0.00025,2]
[372582078,1752691876438,-358.37095982,0.00025,2]
[372582079,1752691876447,-500.0,0.00025,2]
[372582080,1752691876457,-300.0,0.00025,30]
[372582081,1752691876467,-100388.71264862,0.00025,2]
[372582082,1752691876561,-16999.2001146,0.00025,2]
[372582085,1752692167344,500.0,0.00018866,2]
[372582086,1752692373426,795.4433422,0.00018197,2]
[372582087,1752692420134,258.164606,0.00013699,2]
[372582091,1752692799949,15779.0367269,0.00018103,2]
[372582093,1752693018348,153.05529423,0.000189,2]
[372582131,1752693032043,-1627.45000004,0.00019,2]
[372582142,1752693032147,-338.91554705,0.00019,2]
[372582167,1752693037859,-724.6765484,0.00019,2]
[372582168,1752693037871,-460.0,0.00019,2]
[372582169,1752693037964,-3493.17095803,0.00019,2]
[372582170,1752693037974,-300.0,0.00019074,2]
[372582171,1752693037984,-1200.0,0.00019074,2]
[372582172,1752693037993,-500.0,0.00019074,2]
[372582173,1752693038003,-500.0,0.00019074,2]
[372582174,1752693038012,-500.0,0.00019074,2]
[372582175,1752693038022,-500.0,0.00019074,2]
[372582177,1752693038032,-500.0,0.00019074,2]
[372582179,1752693038042,-500.0,0.00019074,2]
[372582181,1752693038053,-254.24941345,0.00019074,2]
[372582183,1752693038062,-500.0,0.00019074,2]
[372582186,1752693038072,-500.0,0.00019074,2]
[372582188,1752693038082,-468.91685647,0.00019074,2]
[372582190,1752693038092,-500.0,0.00019074,2]
[372582192,1752693038102,-500.0,0.00019074,2]
[372582194,1752693038112,-590.93613175,0.00019074,2]
[372582195,1752693038121,-500.0,0.00019074,2]
[372582196,1752693038131,-500.0,0.00019074,2]
[372582197,1752693038141,-500.0,0.00019074,2]
[372582198,1752693038150,-500.0,0.00019074,2]
[372582199,1752693038160,-500.0,0.00019074,2]
[372582200,1752693038169,-500.0,0.00019074,2]
[372582201,1752693038179,-500.0,0.00019074,2]
[372582202,1752693038188,-500.0,0.00019074,2]
[372582203,1752693038198,-500.0,0.00019074,2]
[372582204,1752693038207,-500.0,0.00019074,2]
[372582205,1752693038216,-2514.36570485,0.00019075,2]
[372582206,1752693038226,-312.82531208,0.00019077,2]
[372582207,1752693038235,-370000.0,0.00019078,2]
[372582208,1752693038244,-460.0,0.00019178,2]
[372582209,1752693038253,-460.0,0.00019178,2]
[372582210,1752693038263,-460.0,0.00019178,2]
[372582211,1752693038273,-554.70182583,0.00019178,2]
[372582212,1752693038282,-460.0,0.00019178,2]
[372582213,1752693038291,-460.0,0.00019178,2]
[372582214,1752693038301,-460.0,0.00019178,2]
[372582215,1752693038310,-460.0,0.00019178,2]
[372582216,1752693038320,-460.0,0.00019178,2]
[372582217,1752693038330,-460.0,0.00019178,2]
[372582218,1752693038339,-460.0,0.00019178,2]
[372582219,1752693038351,-460.0,0.00019178,2]
[372582220,1752693038360,-460.0,0.00019178,2]
[372582221,1752693038377,-460.0,0.00019178,2]
[372582222,1752693038386,-331.19088156,0.00019178,2]
[372582223,1752693038396,-331.19088156,0.00019178,2]
[372582224,1752693038407,-460.0,0.00019178,2]
[372582225,1752693038416,-465.3072291,0.00019178,2]
[372582226,1752693038425,-465.48708905,0.00019178,2]
[372582227,1752693038435,-460.0,0.00019178,2]
[372582228,1752693038445,-464.95798481,0.00019178,2]
[372582229,1752693038454,-460.0,0.00019178,2]
[372582230,1752693038463,-460.0,0.00019178,2]
[372582231,1752693038473,-460.0,0.00019178,2]
[372582232,1752693038482,-706.54,0.00019178,2]
[372582233,1752693038492,-160.62364913,0.00019178,2]
[372582234,1752693038502,-462.66237575,0.00019178,2]
[372582235,1752693038512,-462.6850279,0.00019178,2]
[372582236,1752693038523,-494.60969721,0.00019178,2]
[372582237,1752693038532,-460.0,0.00019178,2]
[372582238,1752693038542,-555.98701848,0.00019178,2]
[372582239,1752693038551,-460.0,0.00019178,2]
[372582240,1752693038560,-460.0,0.00019178,2]
[372582241,1752693038570,-460.0,0.00019178,2]
[372582242,1752693038579,-460.0,0.00019178,2]
[372582243,1752693038589,-460.0,0.00019178,2]
[372582244,1752693038600,-460.0,0.00019178,2]
[372582245,1752693038609,-460.0,0.00019178,2]
[372582246,1752693038618,-426.30065769,0.00019178,2]
[372582247,1752693038628,-460.0,0.00019178,2]
[372582248,1752693038637,-433.71062441,0.00019178,2]
[372582249,1752693038646,-505.27191865,0.00019178,2]
[372582250,1752693038657,-460.0,0.00019178,2]
[372582251,1752693038666,-460.0,0.00019178,2]
[372582252,1752693038675,-460.0,0.00019178,2]
[372582253,1752693038684,-460.0,0.00019178,2]
[372582255,1752693038694,-295.43145608,0.00019178,2]
[372582256,1752693038703,-462.43110556,0.00019178,2]
[372582257,1752693038712,-460.0,0.00019178,2]
[372582259,1752693038722,-460.0,0.00019178,2]
[372582260,1752693038731,-460.0,0.00019178,2]
[372582261,1752693038740,-460.0,0.00019178,2]
[372582262,1752693038750,-460.0,0.00019178,2]
[372582263,1752693038759,-460.0,0.00019178,2]
[372582264,1752693038768,-460.0,0.00019178,2]
[372582266,1752693038778,-460.0,0.00019178,2]
[372582267,1752693038787,-460.0,0.00019178,2]
[372582268,1752693038797,-460.0,0.00019178,2]
[372582269,1752693038806,-460.0,0.00019178,2]
[372582270,1752693038816,-460.0,0.00019178,2]
[372582271,1752693038825,-460.0,0.00019178,2]
[372582272,1752693038835,-460.0,0.00019178,2]
[372582273,1752693038846,-460.0,0.00019178,2]
[372582274,1752693038856,-460.0,0.00019178,2]
[372582275,1752693038865,-460.0,0.00019178,2]
[372582276,1752693038875,-215.92478924,0.00019178,2]
[372582277,1752693038884,-460.0,0.00019178,2]
[372582278,1752693038894,-460.0,0.00019178,2]
[372582279,1752693038904,-460.0,0.00019178,2]
[372582280,1752693038913,-460.0,0.00019178,2]
[372582281,1752693038923,-460.0,0.00019178,2]